bitfinex/quotes_SOLUSD_20260120
["timestamp","ask_amount","ask_price","bid_price","bid_amount"]
[1768898348842,4.26664379,128.98,128.93,9.09698122]
[1768898349053,4.26664379,128.97,128.91,8.65376972]
[1768898349259,4.26664379,128.97,128.91,17.75075094]
[1768898349774,7.75203294,129.0,128.85,43.6671524]
[1768898349775,4.26664379,128.95,128.89,9.09698122]
[1768898350148,4.26664379,128.93,128.85,5.34408856]
[1768898350452,4.26664379,128.95,128.89,9.09698122]
[1768898350660,4.26664379,128.93,128.88,16.85595007]
[1768898351560,4.26664379,128.93,128.89,9.09698122]
[1768898352058,4.26664379,128.93,128.88,7.75896885]
[1768898352267,4.26664379,128.93,128.87,17.75295696]
[1768898352468,4.26664379,128.91,128.85,0.89641964]
[1768898352774,13.36362501,128.9,128.83,0.89641964]
[1768898352974,4.26664379,128.92,128.87,9.09698122]
[1768898353293,4.26664379,128.92,128.84,7.76156473]
[1768898353294,4.26664379,128.92,128.86,0.89641964]
[1768898353487,4.26664379,128.91,128.85,9.09698122]
[1768898353789,4.26664379,128.91,128.86,9.09698122]
[1768898354072,4.26664379,128.91,128.85,9.09698122]
[1768898354270,9.09698122,128.9,128.84,27.16547655]
[1768898354462,4.26664379,128.89,128.84,36.26245777]
[1768898354769,4.26664379,128.92,128.86,9.09698122]
[1768898355364,4.26664379,128.92,128.87,9.09698122]
[1768898355568,4.26664379,128.96,128.91,9.09698122]
[1768898356467,4.26664379,128.96,128.89,7.7585538]
[1768898356845,4.26664379,128.96,128.91,9.09698122]
[1768898357973,4.26664379,128.96,128.92,9.09698122]
[1768898358470,4.26664379,128.96,128.92,16.85358954]
[1768898358664,4.26664379,128.96,128.93,9.09698122]
[1768898358857,4.26664379,128.98,128.94,9.09698122]
[1768898359465,4.26664379,128.98,128.93,9.09698122]
[1768898359868,4.26664379,128.96,128.86,0.89641964]
[1768898360061,4.26664379,128.94,128.89,9.09698122]
[1768898360263,4.26664379,128.94,128.89,16.85549234]
[1768898360656,4.26664379,128.93,128.88,9.09698122]
[1768898360956,9.09698122,128.94,128.82,9.99340086]
[1768898360957,4.26664379,128.88,128.82,9.99340086]
[1768898361160,13.36362501,128.88,128.82,9.99340086]
[1768898361464,13.36362501,128.88,128.81,9.09698122]
[1768898361465,4.26664379,128.87,128.81,9.09698122]
[1768898361668,4.26664379,128.86,128.8,8.66014637]
[1768898361873,4.26664379,128.86,128.81,9.09698122]
[1768898362276,4.26664379,128.85,128.78,20.30840672]
[1768898362570,4.26664379,128.84,128.77,0.99641964]
[1768898363075,4.26664379,128.83,128.78,9.09698122]
[1768898363972,4.26664379,128.83,128.78,16.86196847]
[1768898364178,4.26664379,128.83,128.79,9.09698122]
[1768898364683,4.26664379,128.83,128.78,16.86196847]
[1768898365580,4.1133528,128.84,128.79,9.09698122]
[1768898365879,4.1133528,128.84,128.77,0.1]
[1768898365880,4.1133528,128.82,128.77,7.86573609]
[1768898366188,4.1133528,128.82,128.77,16.96271731]
[1768898366554,4.1133528,128.82,128.77,7.86573609]
[1768898366755,4.1133528,128.82,128.77,16.96271731]
[1768898366956,4.1133528,128.82,128.77,9.19698122]
[1768898367152,4.1133528,128.8,128.77,0.1]
[1768898367391,4.1133528,128.77,128.71,9.09698122]
[1768898367583,4.1133528,128.76,128.7,9.09698122]
[1768898367753,4.1133528,128.76,128.71,9.09698122]
[1768898367960,13.21033402,128.78,128.7,0.99641964]
[1768898368297,4.1133528,128.76,128.7,9.09698122]
[1768898368464,4.1133528,128.76,128.71,9.09698122]
[1768898368875,4.1133528,128.76,128.71,16.86631158]
[1768898369470,36.12692439,128.82,128.71,27.19284057]
[1768898369674,4.1133528,128.78,128.73,9.09698122]
[1768898370070,13.21033402,128.78,128.72,9.09698122]
[1768898370359,4.1133528,128.77,128.72,9.09698122]
[1768898370803,4.1133528,128.79,128.74,9.09698122]
[1768898370984,4.1133528,128.78,128.69,0.99641964]
[1768898371158,39.95,128.81,128.68,16.86768472]
[1768898371159,13.21033402,128.74,128.68,16.86768472]
[1768898371360,13.21033402,128.74,128.69,7.77048455]
[1768898371573,4.1133528,128.74,128.69,16.86746577]
[1768898371876,4.1133528,128.77,128.73,9.09698122]
[1768898372059,4.1133528,128.77,128.74,9.09698122]
[1768898372268,4.1133528,128.77,128.71,0.99641964]
[1768898372466,4.1133528,128.77,128.73,9.09698122]
[1768898372667,16.86140602,128.8,128.75,9.09698122]
[1768898372879,16.86101104,128.8,128.75,9.09698122]
[1768898373082,7.76359986,128.81,128.75,9.09698122]
[1768898373467,38.80428845,128.86,128.74,4.16036359]
[1768898373672,16.74,128.83,128.78,9.09698122]
[1768898373874,9.09698122,128.79,128.73,4.16036359]
[1768898374181,9.09698122,128.78,128.73,13.25734481]
[1768898374368,23.34,128.84,128.75,9.09698122]
[1768898374569,12.7928951,128.81,128.75,13.25734481]
[1768898375075,12.7928951,128.81,128.76,9.09698122]
[1768898375277,12.7928951,128.81,128.75,21.02431012]
[1768898375480,12.7928951,128.81,128.75,13.25734481]
[1768898375991,3.69591388,128.8,128.75,16.86369808]
[1768898376182,9.09698122,128.81,128.76,9.09698122]
[1768898376371,3.69591388,128.82,128.76,13.25734481]
[1768898376569,20.55459745,128.84,128.77,4.16036359]
[1768898376785,12.7928951,128.83,128.77,13.25734481]
[1768898377093,3.69591388,128.82,128.78,9.09698122]
[1768898377493,3.69591388,128.84,128.79,9.09698122]
[1768898377684,16.74,128.86,128.79,4.16036359]
[1768898377886,29.5328951,128.86,128.81,13.25734481]
[1768898378186,7.75735008,128.91,128.82,9.09698122]
[1768898378187,9.09698122,128.87,128.82,9.09698122]
[1768898378582,29.5528951,128.88,128.83,9.09698122]
[1768898378778,23.34,128.9,128.85,9.09698122]
[1768898378779,3.69591388,128.89,128.85,9.09698122]
[1768898379100,12.7928951,128.89,128.84,9.09698122]
[1768898379494,3.69591388,128.89,128.84,9.09698122]
[1768898379792,3.69591388,128.89,128.79,4.16036359]
[1768898379793,12.7928951,128.88,128.79,4.16036359]
[1768898380092,9.09698122,128.82,128.77,4.16036359]
[1768898380496,9.09698122,128.81,128.77,4.16036359]
[1768898380692,9.09698122,128.82,128.77,4.16036359]
[1768898381108,12.7928951,128.83,128.77,21.02305102]
[1768898381286,3.69591388,128.83,128.78,9.09698122]
[1768898381486,42.73965915,128.87,128.78,4.16036359]
[1768898381487,7.76131236,128.85,128.78,4.16036359]
[1768898381691,25.85698122,128.85,128.8,9.09698122]
[1768898382377,16.76,128.85,128.8,9.09698122]
[1768898383005,16.76,128.85,128.8,13.34789672]
[1768898383679,16.76,128.85,128.8,4.2509155]
[1768898383981,16.76,128.85,128.8,13.34789672]
[1768898384384,16.76,128.85,128.81,9.09698122]
[1768898384680,20.45591388,128.86,128.81,9.09698122]
[1768898384889,12.7928951,128.84,128.78,9.09698122]
[1768898385190,12.7928951,128.84,128.79,9.09698122]
[1768898385394,12.7928951,128.84,128.77,4.2509155]
[1768898385574,12.85229509,128.83,128.78,9.09698122]
[1768898386270,3.75531387,128.84,128.79,9.09698122]
[1768898386479,12.85229509,128.84,128.78,13.34789672]
[1768898386898,12.85229509,128.84,128.78,4.2509155]
[1768898387105,9.09698122,128.84,128.79,9.09698122]
[1768898387484,20.51531387,128.85,128.79,9.09698122]
[1768898387688,29.61229509,128.85,128.79,9.09698122]
[1768898388004,3.75531387,128.84,128.77,7.76557064]
[1768898388325,3.75531387,128.83,128.78,16.86181874]
[1768898388513,12.85229509,128.83,128.78,9.09698122]
[1768898389409,12.85229509,128.83,128.73,5.34408856]
[1768898389410,3.75531387,128.78,128.72,9.09698122]
[1768898389605,25.79698123,128.77,128.72,9.09698122]
[1768898389806,12.85229509,128.8,128.75,9.09698122]
[1768898390011,16.76,128.79,128.74,9.09698122]
[1768898390309,25.85698122,128.79,128.74,9.09698122]
[1768898390504,25.85698122,128.79,128.74,16.86455342]
[1768898390689,16.76,128.79,128.74,16.86455342]
[1768898390892,16.76,128.79,128.75,9.09698122]
[1768898391096,16.76,128.79,128.74,4.2509155]
[1768898391308,16.76,128.79,128.74,13.34789672]
[1768898391810,16.76,128.79,128.75,9.09698122]
[1768898392208,28.27997829,128.79,128.72,12.01954119]
[1768898392389,28.27997829,128.79,128.74,9.09698122]
[1768898392708,3.71776073,128.76,128.67,4.2509155]
[1768898392899,43.9361094,128.79,128.67,4.2509155]
[1768898392900,3.71776073,128.74,128.69,9.09698122]
[1768898393212,3.71776073,128.78,128.73,9.09698122]
[1768898393388,16.76,128.77,128.73,9.09698122]
[1768898393789,16.76,128.78,128.74,9.09698122]
[1768898394410,16.76,128.78,128.73,4.42220884]
[1768898394613,29.57474195,128.78,128.73,9.09698122]
[1768898394914,3.71776073,128.77,128.71,4.42220884]
[1768898395113,12.81474195,128.77,128.72,9.09698122]
[1768898395919,37.33994287,128.78,128.73,9.09698122]
[1768898396398,9.09698122,128.75,128.69,4.42220884]
[1768898396598,24.52520092,128.78,128.63,38.86833357]
[1768898396599,16.78,128.74,128.67,12.19363802]
[1768898396790,25.87698122,128.74,128.69,9.09698122]
[1768898396990,20.46058312,128.74,128.69,9.09698122]
[1768898397216,20.46058312,128.74,128.7,9.09698122]
[1768898397719,20.46058312,128.74,128.69,9.09698122]
[1768898398019,28.22820963,128.74,128.69,9.09698122]
[1768898399503,43.9666105,128.74,128.62,4.42220884]
[1768898399711,9.09698122,128.72,128.67,9.09698122]
[1768898399916,25.87698122,128.73,128.67,9.09698122]
[1768898400112,37.32605838,128.73,128.67,9.09698122]
[1768898400314,28.22907716,128.73,128.67,13.51919006]
[1768898400500,37.32605838,128.73,128.67,13.51919006]
[1768898400700,20.46058312,128.73,128.67,4.42220884]
[1768898400900,20.46058312,128.75,128.7,9.09698122]
[1768898401123,3.68058312,128.75,128.68,4.42220884]
[1768898401422,3.68058312,128.75,128.67,7.77169969]
[1768898401423,3.68058312,128.77,128.73,9.09698122]
[1768898401623,16.78,128.78,128.75,9.09698122]
[1768898401802,7.76036008,128.86,128.77,9.09698122]
[1768898401803,12.77756434,128.82,128.77,9.09698122]
[1768898402004,12.77756434,128.82,128.7,47.33154184]
[1768898402005,3.68058312,128.82,128.78,9.09698122]
[1768898402220,16.78,128.83,128.78,9.09698122]
[1768898402221,24.54265892,128.83,128.78,9.09698122]
[1768898402414,24.54265892,128.83,128.8,9.09698122]
[1768898402415,16.78,128.83,128.8,9.09698122]
[1768898402625,12.7407585,128.81,128.75,9.09698122]
[1768898403108,3.64377728,128.81,128.76,9.09698122]
[1768898403311,43.94781937,128.83,128.7,9.09698122]
[1768898403312,20.42377728,128.83,128.78,9.09698122]
[1768898403517,16.78,128.83,128.79,9.09698122]
[1768898403912,16.85757682,128.86,128.81,9.09698122]
[1768898404118,25.87698122,128.88,128.83,9.09698122]
[1768898404324,16.78,128.88,128.83,9.09698122]
[1768898404524,16.78,128.88,128.84,9.09698122]
[1768898404825,7.75874569,128.89,128.84,9.09698122]
[1768898405020,7.75874569,128.89,128.84,4.42220884]
[1768898405224,12.73787571,128.92,128.87,9.09409843]
[1768898405412,33.63080577,128.93,128.88,9.09409843]
[1768898406110,3.64377728,128.9,128.83,4.42220884]
[1768898406330,3.64377728,128.9,128.85,9.09409843]
[1768898406631,3.64377728,128.9,128.86,9.09409843]
[1768898407211,16.85080577,128.93,128.88,9.09409843]
[1768898407414,7.75670734,128.93,128.89,9.09409843]
[1768898408112,28.1794691,128.94,128.89,9.09409843]
[1768898408437,28.1794691,128.94,128.9,9.09409843]
[1768898408747,16.78,128.94,128.9,9.09409843]
[1768898408913,25.87409843,128.94,128.88,4.42220884]
[1768898409113,33.62967034,128.94,128.89,9.09409843]
[1768898409547,19.38501156,128.97,128.91,9.09409843]
[1768898409548,23.02878884,128.97,128.91,9.09409843]
[1768898409717,48.90288727,128.97,128.91,13.51630727]
[1768898409918,20.42377728,128.97,128.92,9.09409843]
[1768898410118,28.1775864,128.97,128.93,9.09409843]
[1768898410415,24.53380912,128.97,128.93,9.09409843]
[1768898410609,37.26515252,128.97,128.91,4.42220884]
[1768898410806,3.63724497,128.96,128.87,7.75935319]
[1768898411011,9.09409843,128.94,128.89,9.09409843]
[1768898411223,25.87409843,128.94,128.89,9.09409843]
[1768898411532,25.87409843,128.94,128.88,4.42220884]
[1768898411734,9.09409843,128.94,128.89,9.09409843]
[1768898412137,7.75554521,128.94,128.89,9.09409843]
[1768898412434,3.49875105,128.94,128.85,19.40224411]
[1768898412625,12.59284948,128.94,128.88,9.09409843]
[1768898412941,9.09409843,128.92,128.87,9.09409843]
[1768898413528,9.09409843,128.92,128.83,19.40480889]
[1768898413529,12.52479329,128.91,128.85,9.09409843]
[1768898413838,12.52479329,128.91,128.86,9.09409843]
[1768898414336,12.52479329,128.91,128.82,16.78]
[1768898414337,9.09409843,128.92,128.87,13.51630727]
[1768898414515,16.8504433,128.93,128.88,13.51630727]
[1768898414718,7.75634487,128.93,128.88,13.51630727]
[1768898414919,37.06046106,128.94,128.88,13.51630727]
[1768898415730,3.29691856,128.95,128.91,9.09409843]
[1768898416037,11.05106146,128.97,128.93,9.09409843]
[1768898416337,3.29691856,128.93,128.87,4.42220884]
[1768898416539,12.39101699,128.93,128.88,9.09409843]
[1768898416718,3.29691856,128.93,128.88,9.09409843]
[1768898417314,9.09409843,128.94,128.89,13.51630727]
[1768898417616,9.09409843,128.94,128.87,7.75965147]
[1768898417617,16.78,128.96,128.92,9.09409843]
[1768898417812,33.62857458,128.96,128.9,4.42220884]
[1768898418026,33.62857458,128.96,128.91,9.09409843]
[1768898418449,7.75447615,128.96,128.92,9.09409843]
[1768898418643,20.0142408,128.97,128.92,9.09409843]
[1768898418825,12.26029614,128.97,128.92,9.09409843]
[1768898419150,3.16619771,128.97,128.93,9.09409843]
[1768898419528,7.75361226,128.98,128.94,9.09409843]
[1768898419845,7.75361226,128.98,128.87,16.78]
[1768898419846,2.39634196,128.96,128.88,4.42220884]
[1768898420015,9.09409843,128.93,128.88,4.42220884]
[1768898420219,9.09409843,128.94,128.88,13.51630727]
[1768898420437,7.7560414,128.94,128.88,13.51630727]
[1768898420639,16.85013983,128.94,128.88,13.51630727]
[1768898421027,7.7560414,128.94,128.88,13.51630727]
[1768898421525,7.7560414,128.94,128.88,4.42220884]
[1768898421726,16.85013983,128.94,128.88,4.42220884]
[1768898421936,9.09409843,128.92,128.85,4.42220884]
[1768898422240,9.09409843,128.92,128.87,9.09409843]
[1768898422730,19.12213531,128.93,128.88,9.09409843]
[1768898423047,10.02803688,128.93,128.88,9.09409843]
[1768898423246,19.12213531,128.93,128.88,9.09409843]
[1768898423447,7.75651262,128.93,128.89,9.09409843]
[1768898423940,7.75579796,128.94,128.89,3.74964267]
[1768898424252,3.99610473,129.0,128.9,3.74964267]
[1768898424424,200.0,129.01,128.98,9.09409843]
[1768898424618,200.0,129.01,128.99,9.09409843]
[1768898425132,153.41143611,129.01,129.0,9.09409843]
[1768898425329,0.2,129.03,129.0,9.09409843]
[1768898429644,3.99610473,129.0,128.95,9.09409843]
[1768898429847,9.09409843,128.96,128.9,3.74964267]
[1768898430047,9.09409843,128.93,128.88,3.74964267]
[1768898430746,3.99610473,128.94,128.88,3.74964267]
[1768898430945,3.99610473,128.94,128.88,12.8437411]
[1768898430946,9.09409843,128.93,128.88,12.8437411]
[1768898431320,16.85055937,128.93,128.88,12.8437411]
[1768898431524,16.85055937,128.93,128.87,3.74964267]
[1768898431525,20.8466641,128.93,128.87,3.74964267]
[1768898431726,20.8466641,128.93,128.87,12.8437411]
[1768898431925,20.8466641,128.93,128.87,3.74964267]
[1768898432131,20.8466641,128.93,128.87,12.8437411]
[1768898432341,20.8466641,128.93,128.87,3.74964267]
[1768898432532,20.8466641,128.93,128.87,12.8437411]
[1768898432936,20.8466641,128.93,128.82,3.74964267]
[1768898432937,9.09409843,128.9,128.82,3.74964267]
[1768898433133,9.09409843,128.91,128.85,9.09409843]
[1768898433341,7.7579519,128.9,128.85,12.8437411]
[1768898433546,16.85205033,128.9,128.85,3.74964267]
[1768898434046,16.85205033,128.9,128.84,9.09409843]
[1768898434228,9.09409843,128.89,128.83,12.8437411]
[1768898434424,16.85205033,128.9,128.84,12.8437411]
[1768898435526,9.09409843,128.9,128.84,20.6052237]
[1768898435751,10.47323971,128.91,128.84,20.6052237]
[1768898435952,9.09409843,128.9,128.84,12.8437411]
[1768898436162,2.63765745,128.89,128.81,3.74964267]
[1768898436343,9.09409843,128.86,128.81,3.74964267]
[1768898436940,2.63765745,128.88,128.81,3.74964267]
[1768898437251,9.09409843,128.86,128.81,12.8437411]
[1768898437450,9.09409843,128.87,128.81,20.60707095]
[1768898437635,16.8532968,128.88,128.83,12.8437411]
[1768898438138,16.8532968,128.88,128.83,3.74964267]
[1768898439451,16.8532968,128.88,128.83,12.8437411]
[1768898439652,16.85408181,128.87,128.83,3.74964267]
[1768898439846,16.85408181,128.87,128.81,9.09409843]
[1768898439847,9.09409843,128.84,128.77,3.74964267]
[1768898440149,9.09409843,128.82,128.77,3.74964267]
[1768898442848,16.85652758,128.83,128.77,3.74964267]
[1768898443233,9.09409843,128.85,128.79,9.09409843]
[1768898443461,11.45581989,128.86,128.8,3.42807061]
[1768898443646,11.45581989,128.86,128.77,27.18024217]
[1768898443647,19.39647597,128.89,128.83,3.42807061]
[1768898443851,16.85350905,128.88,128.83,3.42807061]
[1768898444737,36.25139855,128.88,128.83,3.42807061]
[1768898445138,16.85350905,128.88,128.83,3.42807061]
[1768898445759,7.75941062,128.88,128.83,3.42807061]
[1768898445942,3.52347906,128.89,128.84,3.42807061]
[1768898446264,7.7579519,128.9,128.85,3.42807061]
[1768898446464,16.85205033,128.9,128.85,3.42807061]
[1768898446759,7.7579519,128.9,128.85,3.42807061]
[1768898447071,16.85205033,128.9,128.85,3.42807061]
[1768898447574,7.7579519,128.9,128.85,12.52216904]
[1768898447743,16.85163878,128.91,128.85,12.52216904]
[1768898448157,19.38939006,128.94,128.88,3.42807061]
[1768898448461,7.75554521,128.94,128.89,3.42807061]
[1768898448666,16.8,128.95,128.91,3.42807061]
[1768898448844,9.09409843,128.96,128.91,3.42807061]
[1768898449041,43.93178294,129.0,128.92,12.52216904]
[1768898449269,9.09409843,128.98,128.93,3.42807061]
[1768898449781,16.84770452,128.98,128.93,3.42807061]
[1768898451371,7.7527767,128.99,128.94,3.42807061]
[1768898451545,16.84588625,129.01,128.95,12.52216904]
[1768898451746,0.2,129.1,129.02,3.42807061]
[1768898451960,7.7473148,129.08,129.03,9.09409843]
[1768898452170,16.84141323,129.08,129.02,12.49216911]
[1768898452469,7.7473148,129.08,129.02,12.49216911]
[1768898452653,9.09409843,129.03,128.94,16.8]
[1768898452853,31.2885001,129.06,129.01,9.09409843]
[1768898452854,0.2,129.06,129.01,9.09409843]
[1768898453169,7.94858306,129.06,129.01,9.09409843]
[1768898453468,17.04268149,129.06,129.0,9.09409843]
[1768898453775,16.8436706,129.04,128.98,9.09409843]
[1768898453962,7.74957217,129.04,128.98,12.3296718]
[1768898454270,9.09409843,129.04,128.98,12.3296718]
[1768898454774,9.09409843,129.04,128.98,3.23557337]
[1768898455173,16.84303295,129.05,128.99,12.3296718]
[1768898456270,33.84258889,129.06,129.0,9.09409843]
[1768898456659,9.09409843,129.05,128.99,3.23557337]
[1768898456861,24.74849046,129.06,128.99,12.3296718]
[1768898457173,9.09409843,129.05,128.99,12.3296718]
[1768898457773,24.74849046,129.06,128.99,12.3296718]
[1768898457774,7.94849046,129.06,128.99,12.3296718]
[1768898457960,9.09409843,129.05,128.99,12.3296718]
[1768898458153,17.04258889,129.06,128.99,3.23557337]
[1768898458378,17.04258889,129.06,129.0,9.09409843]
[1768898458553,17.04258889,129.06,128.99,3.23557337]
[1768898458772,17.04258889,129.06,129.0,9.09409843]
[1768898458953,0.2,129.06,129.01,9.09409843]
[1768898459156,0.2,129.06,129.02,3.23557337]
[1768898459367,0.2,129.06,129.02,12.29967183]
[1768898460469,0.2,129.06,129.02,3.2055734]
[1768898461257,17.04263934,129.06,129.0,3.23557337]
[1768898461574,9.09409843,129.05,128.99,12.3296718]
[1768898461964,7.94854091,129.06,128.99,12.3296718]
[1768898462166,0.2,129.06,129.03,12.3296718]
[1768898462475,7.94836637,129.06,128.99,9.09409843]
[1768898462672,17.0424648,129.06,129.0,9.09409843]
[1768898464267,17.0424648,129.06,129.0,12.3296718]
[1768898464584,17.0424648,129.06,129.0,3.23557337]
[1768898464767,17.0424648,129.06,129.01,12.3296718]
[1768898464768,0.2,129.06,129.01,12.3296718]
[1768898465359,17.04254487,129.06,129.01,12.3296718]
[1768898465974,17.04254487,129.06,128.93,43.87877632]
[1768898465975,9.09409843,129.02,128.96,3.23557337]
[1768898466179,28.68408856,129.04,128.86,38.8010712]
[1768898466367,23.34,129.0,128.9,3.23557337]
[1768898466570,9.09409843,128.95,128.9,3.23557337]
[1768898466759,16.84844771,128.96,128.9,20.08755031]
[1768898466958,16.84011625,128.96,128.9,12.32134034]
[1768898467479,16.84011625,128.96,128.83,4.04992267]
[1768898467480,32.42576697,128.91,128.83,4.04992267]
[1768898467681,40.14,128.91,128.82,3.23557337]
[1768898467978,9.08576697,128.9,128.85,3.23557337]
[1768898468279,9.08576697,128.91,128.85,9.08576697]
[1768898468484,23.34,128.93,128.83,7.76194969]
[1768898468485,9.08576697,128.92,128.87,3.23557337]
[1768898468781,7.75554521,128.94,128.87,3.23557337]
[1768898469160,9.08576697,128.92,128.87,3.23557337]
[1768898469485,9.08576697,128.92,128.83,3.23557337]
[1768898469486,9.08576697,128.88,128.83,3.23557337]
[1768898470382,9.08576697,128.89,128.83,3.23557337]
[1768898470562,9.08576697,128.88,128.83,3.23557337]
[1768898470760,9.08576697,128.91,128.85,3.23557337]
[1768898470966,9.08576697,128.91,128.86,3.23557337]
[1768898472482,9.08576697,128.93,128.88,3.23557337]
[1768898473172,9.08576697,128.94,128.89,3.23557337]
[1768898473978,16.84110809,128.95,128.9,3.23557337]
[1768898474161,7.75534112,128.95,128.9,3.23557337]
[1768898474369,16.84110809,128.95,128.9,3.23557337]
[1768898474963,7.75534112,128.95,128.9,3.23557337]
[1768898475162,22.14408856,128.98,128.9,3.23557337]
[1768898475473,9.08576697,128.96,128.92,3.23557337]
[1768898475879,9.08576697,128.97,128.92,3.23557337]
[1768898476060,9.08576697,128.93,128.83,3.23557337]
[1768898476263,16.84478799,128.89,128.83,3.23557337]
[1768898476591,16.84478799,128.89,128.81,7.76293406]
[1768898476592,9.08576697,128.9,128.85,3.23557337]
[1768898476791,9.08576697,128.9,128.86,3.23557337]
[1768898476960,19.39078832,128.93,128.86,3.23557337]
[1768898477161,9.08576697,128.91,128.86,3.23557337]
[1768898477787,9.08576697,128.9,128.86,3.23557337]
[1768898478160,9.08576697,128.89,128.86,3.23557337]
[1768898478359,9.08576697,128.9,128.86,3.23557337]
[1768898478565,9.08576697,128.91,128.86,3.23557337]
[1768898478869,16.82,128.94,128.87,3.23557337]
[1768898479077,9.08576697,128.93,128.88,3.23557337]
[1768898479277,7.75519944,128.95,128.9,3.23557337]
[1768898479586,9.08576697,128.94,128.9,3.23557337]
[1768898480164,7.75519944,128.95,128.9,3.23557337]
[1768898480564,9.08576697,128.95,128.9,3.23557337]
[1768898480910,9.08576697,128.96,128.91,3.23557337]
[1768898481472,9.08576697,128.95,128.91,3.23557337]
[1768898482083,16.84030471,128.96,128.91,3.23557337]
[1768898482290,109.85387482,128.97,128.92,3.23557337]
[1768898482471,111.18576697,128.97,128.92,3.23557337]
[1768898483067,102.1,128.97,128.92,12.32134034]
[1768898483264,102.1,128.97,128.93,2.78942472]
[1768898483590,109.85375654,128.97,128.93,2.78942472]
[1768898483766,24.57321397,128.98,128.93,2.78942472]
[1768898483971,16.83898094,128.98,128.93,2.78942472]
[1768898484281,7.75321397,128.98,128.87,2.78942472]
[1768898484485,7.75321397,128.98,128.9,2.78942472]
[1768898484789,9.08576697,128.95,128.9,2.78942472]
[1768898485174,7.75321397,128.98,128.9,2.78942472]
[1768898485490,27.13606402,128.98,128.9,2.78942472]
[1768898485694,9.08576697,128.95,128.9,2.78942472]
[1768898486083,9.08576697,128.95,128.9,11.87519169]
[1768898486889,7.75464291,128.96,128.9,11.87519169]
[1768898487095,16.84040988,128.96,128.9,11.87519169]
[1768898487301,23.34,128.97,128.91,2.78942472]
[1768898487590,7.75270999,128.99,128.94,2.78942472]
[1768898487796,16.82,129.0,128.96,3.68e-06]
[1768898488096,24.57209279,129.0,128.96,3.68e-06]
[1768898488483,7.75209279,129.0,128.96,3.68e-06]
[1768898488991,32.42576697,129.01,128.96,3.68e-06]
[1768898488992,9.08576056,128.98,128.96,3.68e-06]
[1768898489175,9.08576056,128.98,128.96,9.08577065]
[1768898489668,9.08576056,128.98,128.97,9.08576697]
[1768898489875,1.72438751,129.02,128.97,9.08576697]
[1768898490075,1.72438751,129.02,128.98,9.08576697]
[1768898490473,2.76509842,129.03,128.97,1.20309091]
[1768898490691,2.76509842,129.03,128.99,9.08576697]
[1768898491281,2.76509842,129.03,128.97,1.20309091]
[1768898491473,2.76509842,129.03,128.99,9.08576697]
[1768898492690,2.76509842,129.03,128.97,1.20309091]
[1768898492691,2.76509842,129.03,129.0,9.08576697]
[1768898493108,10.51414384,129.05,129.01,9.08576697]
[1768898494398,2.76509842,129.04,129.0,9.08576697]
[1768898494899,2.76509842,129.03,128.94,1.11516349]
[1768898495101,2.76509842,129.02,128.98,9.08576697]
[1768898495292,2.76509842,129.02,128.94,1.11516349]
[1768898495494,2.76509842,129.05,129.01,9.08576697]
[1768898495678,2.76509842,129.05,129.02,9.08576697]
[1768898495876,0.2,129.06,129.03,9.08576697]
[1768898496081,2.76509842,129.03,128.95,2.78942472]
[1768898496277,2.76509842,129.05,128.99,9.08576697]
[1768898496488,2.76509842,129.05,129.0,9.08576697]
[1768898496699,17.03416723,129.06,128.98,2.78942472]
[1768898496700,2.76509842,129.03,128.98,9.08576697]
[1768898497703,2.76509842,129.03,128.96,2.78942472]
[1768898498005,10.71350428,129.06,129.02,9.08576697]
[1768898498190,2.76509842,129.05,129.02,9.08576697]
[1768898498389,2.76509842,129.05,129.01,9.08576697]
[1768898498594,2.76509842,129.05,129.0,2.78942472]
[1768898498794,2.76509842,129.05,129.01,9.08576697]
[1768898499326,2.76509842,129.0,128.94,11.87519169]
[1768898499800,11.85086539,129.0,128.94,11.87519169]
[1768898500000,19.60320612,129.0,128.94,11.87519169]
[1768898500919,9.08576697,128.99,128.94,2.78942472]
[1768898501206,10.51743915,129.0,128.94,2.78942472]
[1768898501412,42.71785409,129.02,128.96,2.78942472]
[1768898501413,7.75158455,129.01,128.96,2.78942472]
[1768898501591,9.08576697,129.0,128.96,2.78942472]
[1768898501780,2.76509842,129.0,128.82,15.76436652]
[1768898501986,2.76509842,129.0,128.65,84.56262323]
[1768898501987,9.08576697,128.95,128.91,2.78942472]
[1768898502600,2.76509842,128.96,128.91,2.78942472]
[1768898502601,11.85086539,128.96,128.91,2.78942472]
[1768898503291,9.08576697,128.96,128.91,2.78942472]
[1768898503901,9.08576697,128.97,128.92,2.84112492]
[1768898504306,10.62164733,128.98,128.92,2.84112492]
[1768898504519,19.7074143,128.98,128.93,2.84112492]
[1768898504810,9.08576697,128.97,128.93,2.84112492]
[1768898505015,9.08576697,128.96,128.93,2.84112492]
[1768898505184,11.95406186,128.94,128.89,2.84112492]
[1768898505388,9.08576697,128.93,128.89,2.84112492]
[1768898505585,2.86829489,128.96,128.89,9.08576697]
[1768898505925,2.86829489,128.96,128.9,2.84112492]
[1768898506223,9.08576697,128.94,128.9,2.84112492]
[1768898507713,10.6230381,128.96,128.9,2.84112492]